bitfinex-derivatives/quotes_SOLF0:USTF0_20240815
["timestamp","ask_amount","ask_price","bid_price","bid_amount"]
[1723737625371,0.0440761,146.16,146.14,0.04657443]
[1723737627377,36.96,146.15,146.14,0.04657443]
[1723737635691,0.0440761,146.16,146.14,0.04657443]
[1723737652897,0.0440761,146.16,146.14,3.46757443]
[1723737653203,0.0440761,146.16,146.14,0.04657443]
[1723737659398,0.0440761,146.16,146.14,3.46767443]
[1723737659804,0.0440761,146.16,146.14,0.04657443]
[1723737660104,0.0440761,146.16,146.14,3.53124666]
[1723737660298,44.7777,146.23,146.14,3.53124666]
[1723737660801,44.7777,146.23,146.14,3.48467223]
[1723737661203,44.7777,146.23,146.15,3.4208]
[1723737661608,0.04936719,146.2,146.17,0.04910169]
[1723737663303,0.04936719,146.2,146.17,29.62910169]
[1723737663913,3.46926719,146.2,146.17,34.32400169]
[1723737664504,0.04936719,146.2,146.17,34.32400169]
[1723737664908,0.04936719,146.2,146.18,3.4202]
[1723737665505,0.04936719,146.2,146.18,4.7655]
[1723737666415,0.04936719,146.2,146.19,3.42]
[1723737666603,4.94,146.26,146.19,3.42]
[1723737666807,3.4194,146.22,146.19,3.42]
[1723737667709,3.4194,146.22,146.19,3.47248495]
[1723737667710,3.46305722,146.22,146.19,3.47248495]
[1723737670813,0.04365722,146.22,146.19,0.05248495]
[1723737671816,3.4197,146.21,146.19,0.05248495]
[1723737672011,0.1855,146.31,146.2,29.58]
[1723737672218,3.4183,146.27,146.24,3.4187]
[1723737672611,29.58,146.33,146.24,4.682]
[1723737672813,29.58,146.31,146.24,1.2633]
[1723737673213,3.4181,146.27,146.26,0.04613634]
[1723737674818,3.4196,146.21,146.19,1.2633]
[1723737675026,29.58,146.27,146.19,1.2633]
[1723737675210,29.58,146.27,146.2,3.4197]
[1723737675419,3.419,146.24,146.19,1.2633]
[1723737676117,3.46523634,146.23,146.2,3.46816163]
[1723737676316,0.04613634,146.23,146.2,0.04856163]
[1723737676516,3.4195,146.21,146.2,0.04856163]
[1723737677219,0.04613634,146.23,146.2,0.04856163]
[1723737677811,3.4194,146.22,146.2,0.04856163]
[1723737678525,3.4195,146.21,146.2,0.04856163]
[1723737679717,0.04613634,146.23,146.2,0.04856163]
[1723737680323,3.4194,146.22,146.2,0.04856163]
[1723737681526,3.4195,146.21,146.2,0.04856163]
[1723737682823,3.4194,146.22,146.2,0.04856163]
[1723737683025,0.04613634,146.23,146.2,0.04856163]
[1723737684020,3.46543634,146.23,146.2,0.04856163]
[1723737684325,0.04613634,146.23,146.2,0.04856163]
[1723737684511,3.4193,146.22,146.2,0.04856163]
[1723737684717,0.04613634,146.23,146.2,0.04856163]
[1723737685118,3.46533634,146.23,146.2,0.04856163]
[1723737685324,3.46533634,146.23,146.2,3.46836163]
[1723737685530,3.46533634,146.23,146.22,29.58]
[1723737685531,0.04613634,146.23,146.22,29.58]
[1723737685823,3.4183,146.27,146.23,3.4189]
[1723737686031,3.4183,146.27,146.22,29.58]
[1723737686323,3.4197,146.21,146.17,1.3179]
[1723737686722,29.58,146.26,146.17,1.3179]
[1723737686926,6.8352,146.3,146.18,29.63057384]
[1723737686927,3.4194,146.22,146.18,29.63057384]
[1723737687131,36.4152,146.3,146.21,29.58]
[1723737687327,3.4188,146.25,146.21,29.58]
[1723737687626,3.4188,146.25,146.24,0.04663712]
[1723737690734,4.78,146.31,146.24,0.04663712]
[1723737690922,30.8264,146.33,146.24,29.62663712]
[1723737690923,1.2464,146.33,146.24,29.62663712]
[1723737691124,3.4179,146.29,146.24,29.62663712]
[1723737691325,3.4179,146.29,146.24,29.58]
[1723737691530,3.4179,146.28,146.25,3.4688669]
[1723737692029,11.6132,146.34,146.25,8.2488669]
[1723737692229,3.4178,146.29,146.26,32.9983]
[1723737692736,34.36,146.34,146.24,32.9986]
[1723737693035,34.36,146.34,146.25,4.78]
[1723737693230,34.36,146.34,146.26,0.04964306]
[1723737694124,3.4181,146.28,146.26,0.04964306]
[1723737694327,34.36,146.34,146.26,0.04964306]
[1723737694733,3.418,146.28,146.26,0.04964306]
[1723737696135,3.4178,146.29,146.27,29.58]
[1723737696626,29.58,146.32,146.23,2.5958]
[1723737696826,29.58,146.32,146.27,0.0515197]
[1723737697533,3.4179,146.28,146.27,0.0515197]
[1723737698234,3.4193,146.22,146.2,34.36]
[1723737698434,36.424,146.3,146.2,34.36]
[1723737698937,3.4192,146.23,146.2,34.36]
[1723737699536,3.4192,146.23,146.2,34.40637403]
[1723737699739,3.4673158,146.23,146.2,34.40637403]
[1723737701043,3.4673158,146.23,146.2,37.82617403]
[1723737702237,0.0481158,146.23,146.2,37.82617403]
[1723737703039,0.0481158,146.23,146.21,3.4194]
[1723737704031,0.0481158,146.23,146.22,29.58]
[1723737704439,0.0481158,146.23,146.22,32.9993]
[1723737705531,0.0481158,146.23,146.22,29.58]
[1723737705736,0.0481158,146.23,146.2,34.40637403]
[1723737706837,0.0481158,146.23,146.2,4.82637403]
[1723737707038,0.0481158,146.23,146.2,0.04637403]
[1723737707240,0.0481158,146.23,146.2,29.62637403]
[1723737707435,0.0481158,146.23,146.21,3.4195]
[1723737708051,3.4672158,146.23,146.21,3.4195]
[1723737708249,0.0481158,146.23,146.21,3.4195]
[1723737708443,0.0481158,146.23,146.2,29.62637403]
[1723737709048,0.0481158,146.23,146.21,3.4195]
[1723737710547,0.0481158,146.23,146.22,32.9993]
[1723737710938,0.0481158,146.23,146.22,36.36968796]
[1723737711139,3.4184,146.26,146.23,3.419]
[1723737711948,3.4184,146.26,146.24,3.4188]
[1723737712450,3.4184,146.26,146.24,0.04499982]
[1723737712648,3.4186,146.25,146.24,0.04499982]
[1723737714243,3.4185,146.26,146.24,0.04499982]
[1723737714951,3.4186,146.25,146.24,0.04499982]
[1723737718851,4.78,146.28,146.24,0.04499982]
[1723737719854,3.4186,146.25,146.24,0.04499982]
[1723737723162,3.4184,146.26,146.24,0.04499982]
[1723737723645,3.4182,146.27,146.24,0.04499982]
[1723737723850,0.0927,146.34,146.26,11.81]
[1723737724049,4.78,146.32,146.26,11.81]
[1723737724450,4.78,146.32,146.28,11.86218638]
[1723737724855,3.4177,146.29,146.28,11.86218638]
[1723737725951,3.4177,146.29,146.28,0.05218638]
[1723737727354,3.4176,146.3,146.28,0.05218638]
[1723737727561,41.09758798,146.35,146.28,0.05218638]
[1723737727960,3.4176,146.3,146.28,0.05218638]
[1723737728154,6.844,146.38,146.29,29.55]
[1723737728359,6.844,146.38,146.32,29.55]
[1723737728561,3.4164,146.35,146.32,29.59955778]
[1723737728858,3.4164,146.35,146.32,34.37955778]
[1723737729756,3.4164,146.35,146.32,37.79655778]
[1723737730363,6.844,146.38,146.32,37.79655778]
[1723737730561,3.47442002,146.39,146.32,37.79655778]
[1723737730763,30.8548,146.41,146.32,37.79655778]
[1723737731163,3.4155,146.39,146.32,37.747]
[1723737731462,34.26802538,146.41,146.35,0.04519772]
[1723737731862,3.4162,146.36,146.35,0.04519772]
[1723737734262,6.844,146.42,146.35,0.04519772]
[1723737734467,48.0939,146.45,146.35,0.04519772]
[1723737734666,51.51858562,146.45,146.33,32.96750956]
[1723737734865,3.4158,146.38,146.34,3.4164]
[1723737735064,36.394,146.43,146.39,0.05069028]
[1723737735568,36.394,146.43,146.33,3.4167]
[1723737735767,36.394,146.43,146.4,0.05166716]
[1723737736070,36.394,146.43,146.33,8.1967]
[1723737736262,36.394,146.43,146.4,0.04896486]
[1723737736467,36.394,146.43,146.33,8.1967]
[1723737736663,36.394,146.43,146.4,0.04462018]
[1723737737168,3.4159,146.37,146.33,4.78]
[1723737737565,3.4159,146.37,146.33,8.1966]
[1723737737767,3.4162,146.36,146.34,0.04676936]
[1723737737972,36.394,146.43,146.34,0.04676936]
[1723737738165,36.394,146.43,146.33,4.78]
[1723737738166,3.416,146.37,146.33,8.1966]
[1723737738667,3.416,146.37,146.34,0.04994885]
[1723737739068,6.844,146.43,146.36,29.55]
[1723737739464,10.2585,146.43,146.39,32.9652]
[1723737739667,6.844,146.43,146.4,3.46022416]
[1723737739860,6.844,146.43,146.4,4.73542416]
[1723737740069,6.844,146.43,146.41,3.4147]
[1723737740270,6.844,146.44,146.42,29.55]
[1723737741069,6.844,146.44,146.42,29.60227201]
[1723737742066,6.844,146.45,146.42,33.01677201]
[1723737743562,4.78,146.53,146.43,4.78]
[1723737743563,6.844,146.44,146.43,4.78]
[1723737743961,34.33,146.53,146.44,3.414]
[1723737744165,6.844,146.52,146.45,29.55]
[1723737744366,6.844,146.52,146.47,0.04823519]
[1723737746773,6.844,146.52,146.47,29.59823519]
[1723737746968,1.3058,146.54,146.47,29.59823519]
[1723737747168,6.844,146.55,146.49,29.55]
[1723737747874,6.844,146.55,146.51,0.04594792]
[1723737749869,6.844,146.53,146.51,0.04594792]
[1723737751072,18.654,146.55,146.51,0.04594792]
[1723737752775,6.844,146.53,146.51,0.04594792]
[1723737753276,6.844,146.52,146.42,1.2926]
[1723737753476,6.844,146.5,146.44,11.81]
[1723737754077,6.844,146.5,146.44,29.48]
[1723737754278,6.844,146.5,146.45,3.4139]
[1723737754485,0.04465454,146.48,146.46,0.04431344]
[1723737759377,0.04465454,146.48,146.46,29.52431344]
[1723737760683,0.04465454,146.48,146.46,32.93801344]
[1723737760982,0.04465454,146.48,146.46,29.52431344]
[1723737761191,0.04465454,146.48,146.47,1.2468]
[1723737761879,0.04465454,146.48,146.47,4.6603]
[1723737762082,0.04465454,146.48,146.47,1.2468]
[1723737763185,0.04465454,146.48,146.47,4.6603]
[1723737763880,6.844,146.56,146.48,3.4131]
[1723737764178,6.844,146.56,146.49,29.48]
[1723737765286,6.844,146.56,146.51,0.05259478]
[1723737767988,6.844,146.57,146.51,0.05259478]
[1723737769186,6.844,146.54,146.51,0.05259478]
[1723737773185,29.48,146.55,146.51,0.05259478]
[1723737773186,6.844,146.52,146.51,0.05259478]
[1723737773393,10.9271872,146.52,146.43,29.48]
[1723737773685,6.844,146.5,146.43,29.48]
[1723737774696,0.05202855,146.48,146.45,0.04505003]
[1723737775993,0.05202855,146.48,146.47,11.79]
[1723737778091,0.05202855,146.48,146.45,29.56505003]
[1723737779595,6.844,146.54,146.45,29.56505003]
[1723737779900,6.844,146.54,146.47,29.52]
[1723737780199,6.844,146.54,146.49,22.684]
[1723737780498,6.844,146.54,146.47,8.1933]
[1723737780699,6.844,146.54,146.49,22.73177697]
[1723737780898,6.844,146.54,146.49,0.04777697]
[1723737781091,6.844,146.56,146.49,0.04777697]
[1723737782394,6.844,146.56,146.49,22.73177697]
[1723737782699,6.844,146.58,146.51,22.684]
[1723737782901,6.844,146.58,146.51,15.848]
[1723737783298,6.844,146.58,146.51,9.012]
[1723737783492,6.844,146.54,146.51,9.012]
[1723737783704,6.844,146.54,146.53,0.04933408]
[1723737785104,10.2558,146.54,146.53,0.04933408]
[1723737785795,6.844,146.54,146.53,0.04933408]
[1723737786399,10.2558,146.54,146.53,0.04933408]
[1723737786699,6.844,146.54,146.53,0.04933408]
[1723737786898,0.04897959,146.56,146.53,0.04933408]
[1723737787096,10.2558,146.54,146.53,0.04933408]
[1723737800410,6.844,146.54,146.53,0.04933408]
[1723737801613,6.89297959,146.56,146.53,0.04933408]
[1723737802109,6.844,146.54,146.53,0.04933408]
[1723737802608,10.2558,146.54,146.53,0.04933408]
[1723737804013,6.844,146.54,146.53,0.04933408]
[1723737804812,10.2558,146.54,146.53,0.04933408]
[1723737806517,6.844,146.54,146.53,0.04933408]
[1723737807817,6.844,146.55,146.53,0.04933408]
[1723737810119,6.89297959,146.56,146.53,0.04933408]
[1723737810317,6.89297959,146.56,146.54,29.5]
[1723737810524,6.89297959,146.56,146.55,1.311]
[1723737810914,6.89297959,146.56,146.55,4.7226]
[1723737811118,0.04897959,146.56,146.55,1.311]
[1723737811520,0.04897959,146.56,146.55,4.7226]
[1723737813019,6.844,146.58,146.55,1.311]
[1723737813215,6.844,146.58,146.56,29.5]
[1723737813521,6.844,146.58,146.55,1.311]
[1723737813724,6.844,146.58,146.56,29.5]
[1723737814019,6.844,146.58,146.56,15.828]
[1723737814220,6.844,146.58,146.56,19.2393]
[1723737814421,6.844,146.58,146.56,12.4033]
[1723737814615,6.844,146.58,146.55,1.311]
[1723737814918,6.844,146.58,146.56,29.5]
[1723737815124,6.844,146.57,146.56,29.5]
[1723737815726,6.844,146.57,146.56,32.9114]
[1723737816223,6.844,146.57,146.56,29.5]
[1723737817225,10.2551,146.57,146.56,29.5]
[1723737817718,6.844,146.57,146.56,29.5]
[1723737819122,6.844,146.58,146.56,32.9114]
[1723737820225,6.844,146.58,146.56,32.96347245]
[1723737821427,3.4105,146.6,146.56,29.55207245]
[1723737821627,6.829,146.59,146.58,29.5]
[1723737821827,10.2397,146.59,146.58,29.5]
[1723737822029,10.2397,146.59,146.58,11.79]
[1723737822334,6.829,146.59,146.58,11.79]
[1723737822530,10.2397,146.59,146.58,11.79]
[1723737823031,6.829,146.6,146.58,11.79]
[1723737823626,10.2397,146.59,146.58,11.79]
[1723737824130,6.829,146.59,146.58,11.79]
[1723737824728,6.829,146.6,146.58,11.79]
[1723737825130,34.1166,146.7,146.59,58.95]
[1723737825330,6.829,146.69,146.64,4.954]
[1723737825736,3.4094,146.65,146.61,3.4102]
[1723737826033,6.829,146.64,146.61,3.4102]
[1723737827039,6.87682103,146.64,146.61,3.45551861]
[1723737827334,11.79,146.79,146.63,58.95]
[1723737827527,2.6269,146.74,146.69,4.954]
[1723737828031,3.4075,146.73,146.68,29.46]
[1723737828337,6.829,146.73,146.71,22.624]
[1723737828532,6.829,146.73,146.71,15.788]
[1723737828831,1.3033,146.78,146.72,29.46]
[1723737829137,27.28,146.87,146.72,29.46]
[1723737829138,10.46458176,146.91,146.77,29.46]
[1723737829433,225.0,147.04,146.77,29.46]
[1723737829434,2.6269,146.86,146.83,0.04537855]
[1723737829733,6.829,146.85,146.77,29.46]
[1723737829935,6.829,146.85,146.77,22.624]
[1723737830142,6.829,146.83,146.77,19.1941]
[1723737830337,6.829,146.83,146.75,29.46]
[1723737830527,6.829,146.83,146.72,3.37094355]
[1723737830528,10.2342,146.83,146.77,29.46]
[1723737830831,0.05064206,146.8,146.79,29.46]
[1723737831029,6.829,146.85,146.79,32.8659]
[1723737832130,6.829,146.87,146.79,29.46]
[1723737832326,8.1641,146.88,146.76,4.76]
[1723737832327,6.829,146.84,146.81,29.46]
[1723737832532,6.829,146.84,146.81,29.50313827]
[1723737832738,6.829,146.84,146.81,32.90853827]
[1723737833329,6.829,146.86,146.81,32.90853827]
[1723737834437,6.829,146.85,146.82,3.4053]
[1723737835133,6.829,146.85,146.83,29.46]
[1723737835542,6.829,146.87,146.83,29.46]
[1723737835837,6.829,146.87,146.81,29.50313827]
[1723737836137,10.2333,146.87,146.82,3.4053]
[1723737836436,10.2333,146.87,146.83,0.04744739]
[1723737837233,10.2333,146.87,146.83,3.45254739]
[1723737837436,6.829,146.87,146.83,0.04744739]
[1723737837937,10.2333,146.87,146.83,0.04744739]
[1723737838336,48.57999748,147.0,146.86,29.46]
[1723737838533,2.633,146.94,146.86,22.624]
[1723737838736,6.829,146.93,146.86,22.624]
[1723737839040,6.829,146.92,146.86,22.624]
[1723737839238,6.829,146.92,146.88,0.04825186]
[1723737839439,6.829,146.9,146.88,0.04825186]
[1723737840339,6.829,146.9,146.88,3.45215186]
[1723737840542,6.829,146.89,146.88,3.45215186]
[1723737840735,6.829,146.89,146.88,0.04825186]
[1723737840939,6.829,146.89,146.88,29.50825186]
[1723737841736,6.829,146.89,146.88,0.04825186]
[1723737842344,6.829,146.89,146.82,3.33117723]
[1723737842345,6.829,146.89,146.82,34.22]
[1723737842642,0.0478916,146.88,146.82,29.46]
[1723737842847,3.4044,146.86,146.82,29.46]
[1723737843144,0.0478916,146.88,146.83,29.46]
[1723737843361,11.5801,146.9,146.85,29.46]
[1723737843545,1.3475,146.9,146.87,29.46]
[1723737843742,3.4034,146.91,146.87,32.8641]
[1723737843939,6.87280324,146.9,146.87,32.8641]
[1723737844137,6.87280324,146.9,146.87,0.04867325]
[1723737844348,6.829,146.88,146.82,3.4052]
[1723737844543,1.293,146.87,146.82,3.4052]
[1723737844741,1.293,146.87,146.82,32.8652]
[1723737845047,6.829,146.86,146.82,32.8652]
[1723737845350,6.829,146.86,146.83,3.405]
[1723737845541,6.829,146.86,146.84,29.46]
[1723737845738,1.3185,146.91,146.84,29.46]
[1723737845946,1.3185,146.91,146.87,29.46]
[1723737846249,6.829,146.9,146.87,29.46]
[1723737847046,6.87320616,146.9,146.87,29.51081476]
[1723737847247,6.829,146.89,146.87,29.51081476]
[1723737847949,10.2328,146.89,146.87,29.51081476]
[1723737848150,6.829,146.89,146.87,29.51081476]
[1723737848450,0.04420616,146.9,146.87,0.05081476]
[1723737848648,6.829,146.88,146.87,0.05081476]
[1723737849240,10.2329,146.88,146.87,0.05081476]
[1723737849548,6.829,146.88,146.87,0.05081476]
[1723737849746,10.26447528,146.88,146.87,0.05081476]
[1723737849948,6.829,146.88,146.87,0.05081476]
[1723737850148,10.17697977,146.88,146.87,0.05081476]
[1723737850350,13.58087977,146.88,146.87,0.05081476]
[1723737850946,10.2329,146.88,146.87,0.05081476]
[1723737851547,3.4048,146.85,146.72,36.2752]
[1723737851754,6.829,146.9,146.8,29.46]
[1723737852651,3.4046,146.86,146.82,32.8653]
[1723737852843,3.44834223,146.86,146.84,0.04426047]
[1723737853646,0.04374223,146.86,146.84,0.04426047]
[1723737854151,3.44814223,146.86,146.84,0.04426047]
[1723737856861,6.87274223,146.86,146.84,0.04426047]
[1723737858352,0.04374223,146.86,146.84,0.04426047]
[1723737858555,1.3198,146.85,146.84,0.04426047]
[1723737858952,4.7244,146.85,146.84,0.04426047]
[1723737860356,1.3198,146.85,146.84,0.04426047]
[1723737860863,4.7244,146.85,146.84,0.04426047]
[1723737861362,1.3198,146.85,146.84,0.04426047]
[1723737862262,6.87274223,146.86,146.84,0.04426047]
[1723737862565,1.2954,146.89,146.84,5.04426047]
[1723737862765,1.2954,146.89,146.86,29.46]
[1723737863153,1.2954,146.89,146.86,32.8642]
[1723737863361,6.829,146.9,146.86,32.8642]
[1723737863661,0.05166207,146.89,146.87,3.404]
[1723737864063,0.05166207,146.89,146.87,3.45588582]
[1723737865062,6.88066207,146.89,146.87,0.05188582]
[1723737866061,6.829,146.88,146.87,0.05188582]
[1723737866662,6.6938,146.88,146.87,3.45608582]
[1723737866855,2.5919,146.97,146.87,58.97188582]
[1723737867060,2.5919,146.97,146.91,22.624]
[1723737867261,6.829,146.96,146.91,8.952]
[1723737867664,6.829,146.94,146.91,12.3552]
[1723737867860,6.829,146.94,146.89,29.46]
[1723737868153,6.829,146.94,146.93,3.4028]
[1723737868763,6.829,146.96,146.92,32.8629]
[1723737868956,6.829,146.96,146.92,29.46]
[1723737869357,6.829,146.94,146.92,29.46]
[1723737869555,6.829,146.94,146.91,0.04677447]
[1723737869754,6.829,146.92,146.91,0.04677447]
[1723737870156,29.46,147.02,146.91,27.26677447]
[1723737870372,6.829,147.04,146.98,29.46]
[1723737870668,1.3535,147.03,146.98,29.46]
[1723737870961,6.829,147.01,146.99,5.0]
[1723737871269,225.0,147.13,147.0,29.46]
[1723737871466,6.829,147.06,147.02,29.46]
[1723737871669,3.4423233,147.05,146.98,29.46]
[1723737871872,3.39503303,147.04,146.98,29.46]
[1723737872173,1.2379,147.05,146.98,29.46]
[1723737872369,3.34808298,147.04,146.98,29.46]
[1723737872667,1.2379,147.05,147.0,0.04831232]
[1723737872873,4.65606784,147.05,147.0,0.04831232]
[1723737873072,3.4011,147.01,146.96,29.46]
[1723737873463,1.2379,147.05,146.97,0.04967174]
[1723737873668,3.4011,147.01,146.97,0.04967174]
[1723737873970,3.33787645,147.03,146.97,0.04967174]
[1723737874271,3.4011,147.01,146.97,0.04967174]
[1723737874475,4.59312756,147.05,146.97,0.04967174]
[1723737874675,1.2379,147.05,146.97,0.04967174]
[1723737874973,29.46,147.03,146.97,0.04967174]
[1723737875373,3.4015,146.99,146.97,0.04967174]
[1723737875571,2.5567,147.02,146.97,0.04967174]
[1723737876366,3.4016,146.98,146.97,0.04967174]
[1723737877578,3.4025,146.95,146.92,29.46]
[1723737877774,29.46,147.01,146.92,29.46]
[1723737877978,29.46,146.99,146.9,29.46]
[1723737878277,6.3423,146.98,146.9,29.46]
[1723737878472,3.40978625,146.97,146.9,29.46]
[1723737878673,0.050313,146.95,146.93,0.04685139]
[1723737879079,3.4025,146.94,146.93,0.04685139]
[1723737880179,0.050313,146.95,146.93,0.04685139]
[1723737881271,3.452713,146.95,146.93,0.04685139]
[1723737881769,0.050313,146.95,146.93,0.04685139]
[1723737883380,0.050313,146.95,146.94,29.46]
[1723737884075,0.050313,146.95,146.93,0.04685139]
[1723737884476,0.050313,146.95,146.93,3.44955139]
[1723737884675,0.050313,146.95,146.93,0.04685139]
[1723737885879,3.452713,146.95,146.93,0.04685139]
[1723737886182,0.050313,146.95,146.93,0.04685139]
[1723737886583,3.4025,146.94,146.93,0.04685139]
[1723737887386,0.050313,146.95,146.89,29.46]
[1723737887578,1.2429,146.94,146.89,29.46]
[1723737887879,3.4031,146.92,146.89,29.46]
[1723737888675,0.04876226,146.92,146.89,32.91036269]
[1723737889683,3.45176226,146.92,146.89,32.91036269]
[1723737890286,3.45176226,146.92,146.89,29.50666269]
[1723737891290,0.04876226,146.92,146.89,29.50666269]
[1723737891792,3.45186226,146.92,146.89,32.91036269]
[1723737891986,0.04876226,146.92,146.89,29.50666269]
[1723737892293,3.45186226,146.92,146.89,32.91036269]
[1723737892493,3.45186226,146.92,146.89,29.50666269]
[1723737892887,3.45186226,146.92,146.89,32.91026269]
[1723737893586,3.45186226,146.92,146.9,29.46]
[1723737893893,5.06,146.95,146.9,29.46]
[1723737894193,3.38030086,146.97,146.93,29.46]
[1723737894382,5.06,147.0,146.96,29.46]
[1723737894787,3.4017,146.98,146.96,29.46]
[1723737895284,3.44897513,146.98,146.96,29.50427491]
[1723737895685,0.04727513,146.98,146.97,29.46]
[1723737895888,2.5403,147.01,146.97,29.46]
[1723737896289,3.4012,147.0,146.97,29.46]
[1723737896692,3.4014,146.99,146.97,29.46]
[1723737897592,3.4016,146.98,146.97,29.46]
[1723737897790,3.4016,146.98,146.96,29.50427491]
[1723737900394,5.06,147.02,146.97,29.46]
[1723737900790,3.401,147.01,146.97,29.46]
[1723737901293,5.06,147.02,146.97,29.46]
[1723737901491,0.02065751,147.03,147.01,29.46]
[1723737902395,0.02065751,147.03,147.0,29.46]
[1723737902698,0.02065751,147.03,147.01,0.05041175]
[1723737902898,0.02065751,147.03,147.01,29.51041175]
[1723737903098,0.02065751,147.03,147.01,29.46]
[1723737903401,0.02065751,147.03,147.01,32.91048446]
[1723737903697,0.02065751,147.03,147.01,29.50968446]
[1723737904297,6.829,147.08,147.02,3.4005]
[1723737904597,6.829,147.06,147.04,29.46]
[1723737904799,6.829,147.06,147.04,0.05115054]
[1723737905194,3.3998,147.06,147.04,0.05115054]
[1723737906001,3.4,147.05,147.04,0.05115054]
[1723737907602,34.5,147.07,146.98,29.46]
[1723737908302,29.46,147.05,146.96,29.46]
[1723737908504,2.5822,147.04,146.96,29.46]
[1723737908803,3.45161272,147.02,146.99,0.04671604]
[1723737908997,6.77746306,147.02,146.99,0.04671604]
[1723737909194,3.37656306,147.02,146.99,0.04671604]
[1723737909406,3.4012,147.0,146.99,0.04671604]
[1723737912900,30.7808,147.01,146.92,29.46]
[1723737913105,30.7808,147.01,146.88,4.92]
[1723737913106,29.46,146.98,146.88,4.92]
[1723737913412,3.4034,146.91,146.88,29.46]
[1723737913706,4.92,146.95,146.88,29.46]
[1723737913904,3.4032,146.92,146.88,29.46]
[1723737914102,4.92,146.95,146.88,29.46]
[1723737914293,0.05053907,146.93,146.9,0.04366738]
[1723737914497,3.4032,146.91,146.9,0.04366738]
[1723737914904,6.74696914,146.91,146.9,0.04366738]
[1723737915297,3.34376914,146.91,146.84,29.46]
[1723737915502,4.92,146.9,146.84,29.46]
[1723737915704,3.43020485,146.89,146.84,29.46]
[1723737915903,29.46,146.94,146.84,29.46]
[1723737916108,4.92,146.93,146.84,29.46]
[1723737916313,4.92,146.92,146.84,29.46]
[1723737916501,4.92,146.92,146.81,1.262]
[1723737916700,0.04951535,146.9,146.87,0.0458426]
[1723737917204,3.4039,146.88,146.87,0.0458426]
[1723737919104,3.4054,146.82,146.79,4.92]
[1723737919301,3.4054,146.82,146.76,1.262]
[1723737919302,4.92,146.88,146.81,29.46]
[1723737919704,4.92,146.87,146.81,29.46]
[1723737919907,3.39713981,146.86,146.81,29.46]
[1723737920103,4.92,146.87,146.81,29.46]
[1723737920408,0.04779845,146.85,146.82,0.05027484]
[1723737920909,3.4051,146.83,146.82,0.05027484]
[1723737921103,6.75251726,146.83,146.82,0.05027484]
[1723737922707,3.34741726,146.83,146.71,3.4077]
[1723737922910,1.2932,146.82,146.75,29.46]
[1723737923102,4.92,146.81,146.75,29.46]
[1723737923306,3.4065,146.77,146.75,29.46]
[1723737923499,4.92,146.81,146.75,29.46]
[1723737923701,3.4065,146.77,146.75,29.46]
[1723737923904,3.40715499,146.83,146.77,0.04414197]
[1723737924106,4.92,146.86,146.8,29.46]
[1723737924399,3.4051,146.84,146.82,29.46]
[1723737925307,4.92,146.86,146.82,29.46]
[1723737925512,4.92,146.86,146.77,2.5322]
[1723737925513,4.92,146.86,146.8,29.46]
[1723737925713,0.04669233,146.84,146.82,0.04981206]
[1723737926303,0.04669233,146.84,146.76,29.46]
[1723737926709,3.4051,146.83,146.82,0.05055933]
[1723737926905,0.04761124,146.81,146.76,29.46]
[1723737927112,4.96761124,146.81,146.76,29.46]
[1723737927308,3.4065,146.77,146.76,29.46]
[1723737927706,3.45107875,146.8,146.74,29.46]
[1723737927909,4.92,146.79,146.73,29.46]